[Event "23rd Alekhine FIDE 2019"]
[Site "Voronezh"]
[Date "2019.06.17"]
[Round "6.7"]
[White "Bujakevich, Aleksandr"]
[Black "Abramov, Ilya"]
[Result "1/2-1/2"]
[ECO "C06"]
[WhiteElo "2025"]
[BlackElo "2098"]
[Annotator "NA RC"]
[PlyCount "109"]
[EventDate "2019.06.12"]
[EventType "swiss"]
[EventCountry "RUS"]
[SourceTitle "playchess.com"]
[Source "ChessBase"]
[SourceQuality "1"]
[TimeControl "40/5400+30:1800+30"]

1. e4 {[%emt 0:00:00]} e6 {[%emt 0:00:00]} 2. d4 {[%emt 0:00:00]} d5 {[%emt 0:00:00]} 3. Nd2 {[%emt 0:00:00]} Nf6 {[%emt 0:00:05]} 4. e5 {[%emt 0:00:00]} Nfd7 {[%emt 0:00:05]} 5. Bd3 {[%emt 0:00:27]} c5 {[%emt 0:00:12]} 6. c3 {[%emt 0:00:08]} Nc6 {[%emt 0:00:06]} 7. Ne2 {[%emt 0:01:01]} cxd4 {[%emt 0:00:11]} 8. cxd4 {[%emt 0:00:08]} f6 {[%emt 0:00:06]} 9. exf6 {[%emt 0:00:42]} Nxf6 {[%emt 0:00:07]} 10. Nf3 {[%emt 0:02:30]} Bd6 {[%emt 0:00:20]} 11. O-O {[%emt 0:04:31]} O-O {[%emt 0:00:09]} 12. Bf4 {[%emt 0:02:20]} Bxf4 {[%emt 0:00:56]} 13. Nxf4 {[%emt 0:00:03]} Ng4 {[%emt 0:01:02]} 14. g3 {[%emt 0:03:04]} g5 {[%emt 0:06:30] C06: French Tarrasch: 3...Nf6 4 e5 Nfd7 5 Bd3 main lines} 15. Ng2 {[%emt 0:25:25]} (15. Nh3 e5 16. dxe5 h6 17. Re1 Kg7 18. Bb5 Ne7 19. e6 Nf6 20. Nd4 Qb6 21. Rc1 Ne4 22. Kg2 {1-0 (73) Bocharov,I (2565)-Volkov,S (2547) Kazan 2018}) 15... e5 {[%emt 0:09:01]} 16. dxe5 $146 {[%emt 0:05:50]} ({Predecessor:} 16. Nxe5 Ncxe5 17. dxe5 Nxe5 18. Be2 Be6 19. Qd2 Nc6 20. Rad1 d4 21. b3 Kh8 22. f4 {1-0 (41) Low,G-Kaminik,A (2179) Bad Wiessee 1999}) 16... Ngxe5 {[%emt 0:01:57]} 17. Be2 {[%emt 0:01:03]} Bh3 {[%emt 0:02:09]} 18. Nxe5 {[%emt 0:05:20]} Nxe5 {[%emt 0:00:08]} 19. f4 {[%emt 0:05:17]} Bxg2 {[%emt 0:05:33]} 20. Kxg2 {[%emt 0:00:28]} gxf4 {[%emt 0:00:07]} 21. Rxf4 {[%emt 0:03:55]} Rxf4 {[%emt 0:02:23]} 22. gxf4 {[%emt 0:00:17]} Ng6 {[%emt 0:08:57]} 23. Qd4 {[%emt 0:02:20]} Qd6 {[%emt 0:07:03]} 24. Rf1 {[%emt 0:03:20]} Rf8 {[%emt 0:02:39]} 25. f5 {[%emt 0:02:32]} Qe5 {[%emt 0:00:28]} 26. Qxe5 {[%emt 0:04:44]} Nxe5 {[%emt 0:00:09]} 27. Kg3 {[%emt 0:09:26]} Kg7 {[%emt 0:01:23]} 28. Kf4 {[%emt 0:04:44]} Kf6 {[%emt 0:00:32]} 29. Rd1 {[%emt 0:01:16]} Rd8 {[%emt 0:01:44]} 30. Rd4 {[%emt 0:01:10]} Nc6 {[%emt 0:02:02]} 31. Rd3 {[%emt 0:00:45]} d4 {[%emt 0:05:34]} 32. Rh3 {[%emt 0:02:14]} Rd5 {[%emt 0:13:12]} 33. Bd3 {[%emt 0:04:45]} Nb4 {[%emt 0:00:22]} 34. Be4 {[%emt 0:00:56]} Rd7 {[%emt 0:00:16]} 35. a3 {[%emt 0:01:49]} d3 {[%emt 0:02:44]} 36. axb4 {[%emt 0:00:38]} d2 {[%emt 0:00:02]} 37. Bc2 {[%emt 0:01:10]} d1=Q {[%emt 0:00:22]} 38. Bxd1 {[%emt 0:00:35]} Rxd1 {[%emt 0:00:02]} 39. Rh6+ {[%emt 0:02:33]} Kg7 {[%emt 0:00:08]} 40. Re6 {[%emt 0:00:07]} Rd2 {[%emt 0:01:08]} 41. Re7+ {[%emt 0:30:35]} Kf6 {[%emt 0:30:06]} 42. Rxb7 {[%emt 0:01:51]} Rxb2 {[%emt 0:00:23]} 43. h4 {[%emt 0:00:04]} h5 {[%emt 0:00:45]} 44. Rb8 {[%emt 0:01:04]} Rg2 {[%emt 0:01:23]} 45. Rf8+ {[%emt 0:00:21]} Kg7 {[%emt 0:01:28]} 46. Ra8 {[%emt 0:00:06]} Rg4+ {[%emt 0:00:11]} 47. Ke5 {[%emt 0:00:02]} Rxb4 {[%emt 0:00:08]} 48. Rxa7+ {[%emt 0:00:13]} Kg8 {[%emt 0:00:42]} 49. Kf6 {[%emt 0:00:42]} Rxh4 {[%emt 0:00:42]} 50. Ra8+ {[%emt 0:00:52]} Kh7 {[%emt 0:00:02]} 51. Kg5 {[%emt 0:00:49]} Rh1 {[%emt 0:01:36]} 52. f6 {[%emt 0:00:19]} Rf1 {[%emt 0:00:14]} 53. Ra7+ {[%emt 0:00:15]} Kg8 $11 {[%emt 0:00:09]} 54. Ra8+ {[%emt 0:00:19]} Kf7 {[%emt 0:00:17]} 55. Ra7+ 1/2-1/2

[Event "23rd Alekhine FIDE 2019"]
[Site "Voronezh"]
[Date "2019.06.17"]
[Round "6.8"]
[White "Popov, Maksim"]
[Black "Mikhnenko, Alexander"]
[Result "0-1"]
[ECO "A06"]
[WhiteElo "2014"]
[BlackElo "2052"]
[Annotator "NA RC"]
[PlyCount "84"]
[EventDate "2019.06.12"]
[EventType "swiss"]
[EventCountry "RUS"]
[SourceTitle "playchess.com"]
[Source "ChessBase"]
[SourceQuality "1"]
[TimeControl "40/5400+30:1800+30"]

1. Nf3 {[%emt 0:00:00]} d5 {[%emt 0:05:02]} 2. c4 {[%emt 0:00:00]} e6 {[%emt 0:00:03]} 3. e3 {[%emt 0:00:00]} dxc4 {[%emt 0:00:13]} 4. Bxc4 {[%emt 0:00:00]} Nf6 {[%emt 0:00:03]} 5. a3 {[%emt 0:01:33]} a6 {[%emt 0:00:25]} 6. Nc3 {[%emt 0:05:18]} c5 {[%emt 0:02:19]} 7. d4 {[%emt 0:01:42]} b5 {[%emt 0:00:46]} 8. Be2 {[%emt 0:00:10] D40: Queen's Gambit Declined: Semi-Tarrasch with 5 e3} (8. Ba2 Bb7 9. O-O Nbd7 10. Qe2 Qb8 11. Rd1 Bd6 12. h3 O-O 13. dxc5 Nxc5 14. b4 Ncd7 15. Bb2 Rc8 16. Rac1 Ne5 17. Nxe5 Bxe5 18. Bb1 {0-1 (46) Melkumyan,H (2670)-Yilmaz,M (2636) St Petersburg 2018}) 8... Bb7 {[%emt 0:01:44]} 9. O-O {[%emt 0:00:40]} Nbd7 {[%emt 0:01:11]} 10. Qc2 {[%emt 0:09:56]} (10. dxc5 $11 Bxc5 11. b4) 10... Rc8 {[%emt 0:01:00]} 11. Rd1 {[%emt 0:01:29]} Qc7 {[%emt 0:01:59]} 12. Bd2 {[%emt 0:02:20]} Bd6 $146 {[%emt 0:13:10]} ({Predecessor:} 12... cxd4 13. Nxd4 Bd6 14. g3 O-O 15. Rac1 Ne5 16. Qb1 Qb8 {0-1 (32) Frost,E (1963)-Koehler,J (2181) ICCF email 2009}) 13. h3 {[%emt 0:02:12]} O-O {[%emt 0:01:20]} 14. Rac1 {[%emt 0:00:24]} Rfd8 {[%emt 0:05:22]} 15. Qb1 {[%emt 0:00:42]} Qb6 {[%emt 0:03:15]} 16. dxc5 {[%emt 0:11:09]} Nxc5 {[%emt 0:03:08]} 17. b4 {[%emt 0:00:18]} Nce4 {[%emt 0:00:44]} 18. Nxe4 {[%emt 0:00:08]} Nxe4 {[%emt 0:07:17]} 19. Bd3 {[%emt 0:01:52]} Rxc1 {[%emt 0:13:02]} 20. Rxc1 {[%emt 0:00:45]} f5 {[%emt 0:03:49]} 21. Qb2 {[%emt 0:15:18]} Nxd2 {[%emt 0:01:59]} 22. Nxd2 {[%emt 0:02:19]} Bb8 {[%emt 0:01:40]} 23. Bb1 {[%emt 0:04:22]} Qd6 {[%emt 0:01:26]} 24. Nf1 {[%emt 0:00:45]} Rc8 {[%emt 0:02:15]} 25. Rxc8+ {[%emt 0:01:25]} Bxc8 {[%emt 0:00:04]} 26. Qc2 {[%emt 0:00:37]} Bb7 {[%emt 0:00:20]} 27. Ba2 {[%emt 0:00:14]} Kf8 {[%emt 0:02:41]} 28. f4 {[%emt 0:06:38]} Ba7 {[%emt 0:03:49]} 29. Kh1 {[%emt 0:02:29]} Ke7 {[%emt 0:01:32]} 30. Qc3 {[%emt 0:00:18]} Kf7 {[%emt 0:00:21]} 31. Ng3 {[%emt 0:02:17]} Kg6 {[%emt 0:05:52]} 32. h4 $2 {[%emt 0:02:16]} (32. Bb3 $11) 32... h6 {[%emt 0:02:32]} 33. Kh2 {[%emt 0:02:57]} Kh7 {[%emt 0:01:06]} 34. Nh5 {[%emt 0:01:15]} Qe7 {[%emt 0:01:56]} 35. Kh3 {[%emt 0:00:48]} Qf7 {[%emt 0:00:30]} 36. Ng3 {[%emt 0:00:38]} Qg6 $19 {[%emt 0:00:49]} 37. Kh2 {[%emt 0:01:55]} Qg4 {[%emt 0:00:51]} 38. Qe1 {[%emt 0:00:40]} Qxh4+ {[%emt 0:00:08]} 39. Kg1 {[%emt 0:00:05]} Qxf4 {[%emt 0:00:17]} 40. Nf1 {[%emt 0:00:53]} Qe4 {[%emt 0:01:40]} 41. Qe2 {[%emt 0:30:37]} Bd5 {[%emt 0:33:43]} 42. Bxd5 {[%emt 0:00:17]} exd5 {[%emt 0:00:40]} 0-1

[Event "23rd Alekhine FIDE 2019"]
[Site "Voronezh"]
[Date "2019.06.17"]
[Round "6.14"]
[White "Ioffe, Evgeny"]
[Black "Mezhov, Dmitriy"]
[Result "0-1"]
[ECO "B22"]
[WhiteElo "2082"]
[BlackElo "1974"]
[Annotator "NA RC"]
[PlyCount "114"]
[EventDate "2019.06.12"]
[EventType "swiss"]
[EventCountry "RUS"]
[SourceTitle "playchess.com"]
[Source "ChessBase"]
[SourceQuality "1"]
[TimeControl "40/5400+30:1800+30"]

{[%evp 8,114,26,16,26,10,23,14,22,-22,36,34,32767,32767,32767,32767,32767,32767,32767,32767,14,-12,-14,-6,9,3,9,8,0,-6,0,-12,-16,-37,-18,-47,-32,-32,-31,-24,14,32767,32767,-101,-106,-108,-79,32767,32767,32767,32767,32767,32767,32767,32767,32767,-108,-111,-95,-131,-123,-137,32767,32767,32767,32767,32767,32767,32767,-226,-111,-104,-110,-87,-82,-85,32767,32767,32767,32767,32767,32767,32767,-137,-22,32767,32767,32767,32767,-97,-52,32767,-232,32767,32767,32767,-633,32767,32767,32767,-29977,-29958,-29980,-29981,-29982,-29985,-29982,-29984,-29984]} 1. e4 {[%emt 0:00:00]} c5 {[%emt 0:00:00]} 2. c3 {[%emt 0:00:00]} d5 {[%emt 0:00:00]} 3. exd5 {[%emt 0:00:00]} Qxd5 {[%emt 0:00:00]} 4. d4 {[%emt 0:00:02]} Nc6 {[%emt 0:00:00]} 5. Nf3 {[%emt 0:00:24]} Bg4 {[%emt 0:00:02]} 6. Be2 {[%emt 0:00:35]} cxd4 {[%emt 0:00:04]} 7. cxd4 {[%emt 0:00:22]} e6 {[%emt 0:00:04]} 8. h3 {[%emt 0:01:52]} Bh5 {[%emt 0:01:46]} 9. Nc3 {[%emt 0:00:30]} Qd7 {[%emt 0:02:29]} 10. Be3 {[%emt 0:10:59]} Nf6 {[%emt 0:00:04]} 11. O-O {[%emt 0:00:40]} Bd6 {[%emt 0:00:26]} 12. Qb3 {[%emt 0:04:32] B22: Sicilian: 2 c3} (12. Bg5 Nd5 13. Nxd5 exd5 14. Nh4 Bxe2 15. Qxe2+ Qe6 16. Qd3 O-O 17. Rfe1 Qd7 18. Nf5 Bc7 19. Qf3 f6 {0-1 (94) Senador,E (2326)-Chua,J (1725) Penang 2018}) 12... O-O {[%emt 0:00:19]} 13. Rad1 {[%emt 0:00:44]} Na5 {[%emt 0:00:46]} 14. Qb5 $146 {[%emt 0:03:23]} ({Predecessor:} 14. Qc2 Bg6 15. Bd3 Bxd3 16. Qxd3 h6 17. Ne5 Qe7 18. Ne4 Nxe4 19. Qxe4 f5 {1-0 (70) Ankhbayar,B-Kozganbayev,E (2213) Kemer 2009}) 14... Qxb5 $1 {[%emt 0:00:06]} 15. Nxb5 {[%emt 0:00:17]} Be7 {[%emt 0:00:43]} 16. g4 {[%emt 0:01:31]} Bg6 {[%emt 0:00:03]} 17. Ne5 {[%emt 0:00:24]} Nd5 {[%emt 0:00:18]} 18. Bd2 {[%emt 0:04:21]} Nc6 {[%emt 0:00:03]} 19. Rfe1 {[%emt 0:07:32]} a6 {[%emt 0:06:18]} 20. Nxc6 {[%emt 0:02:22]} bxc6 {[%emt 0:03:54]} 21. Nc3 {[%emt 0:00:38]} Nb4 {[%emt 0:04:53]} 22. Be3 {[%emt 0:11:53]} Rfd8 {[%emt 0:02:14]} 23. Rd2 {[%emt 0:04:04]} c5 {[%emt 0:10:57]} 24. Bf3 {[%emt 0:02:19]} Rab8 {[%emt 0:03:05]} 25. d5 {[%emt 0:05:51]} (25. Red1 $11) 25... Nd3 {[%emt 0:00:17] Discovered Attack} 26. Ree2 {[%emt 0:06:16]} Ne5 {[%emt 0:06:02]} 27. Bg2 {[%emt 0:00:27]} Nc4 {[%emt 0:00:04]} 28. Bf4 {[%emt 0:04:32]} Bd6 {[%emt 0:01:33]} 29. Bxd6 {[%emt 0:07:27]} Rxd6 {[%emt 0:00:01]} 30. Rd1 {[%emt 0:00:39]} Nxb2 {[%emt 0:00:06]} 31. Ra1 {[%emt 0:00:25]} Nd3 {[%emt 0:05:25]} 32. dxe6 {[%emt 0:00:54]} Rxe6 {[%emt 0:01:21]} 33. Rxe6 {[%emt 0:02:03]} fxe6 {[%emt 0:00:04]} 34. Be4 {[%emt 0:03:34]} Bxe4 {[%emt 0:03:11]} 35. Nxe4 {[%emt 0:00:05]} c4 {[%emt 0:00:17]} 36. Kg2 {[%emt 0:01:28]} Rc8 {[%emt 0:09:31]} 37. Nc3 {[%emt 0:00:30]} Rf8 {[%emt 0:00:03]} 38. Ne4 {[%emt 0:01:39] [#]} (38. Rf1 $17 {is a better defense.}) 38... c3 {[%emt 0:03:51]} (38... Rf4 $1 $19 {[%cal Rf4e4]} 39. Nc3 Rxf2+ 40. Kg3 h6) 39. Nxc3 {[%emt 0:00:19]} Rxf2+ {[%emt 0:00:24]} 40. Kg3 {[%emt 0:00:12]} Rc2 {[%emt 0:00:05]} 41. Ne4 {[%emt 0:30:30]} Nc5 {[%emt 0:36:29]} 42. Nxc5 {[%emt 0:01:47]} Rxc5 {[%emt 0:00:05]} 43. Re1 {[%emt 0:01:20]} Kf7 {[%emt 0:00:06]} 44. Re2 {[%emt 0:00:36]} g5 {[%emt 0:00:17]} 45. Re3 {[%emt 0:00:51] [#]} e5 {[%emt 0:01:05]} (45... Ra5 $1 $17 46. Rf3+ Ke7) 46. h4 {[%emt 0:01:17]} gxh4+ {[%emt 0:00:04]} 47. Kxh4 {[%emt 0:00:17]} Ra5 {[%emt 0:01:40]} 48. a3 {[%emt 0:00:54]} (48. Kg5 $11 {keeps the balance.}) 48... Kf6 {[%emt 0:01:28]} 49. g5+ {[%emt 0:02:22] [#]} Kg6 $1 {[%emt 0:01:16]} 50. Re4 {[%emt 0:00:57]} Kf5 {[%emt 0:00:03]} 51. Rc4 {[%emt 0:01:04]} e4 {[%emt 0:02:05]} 52. Rc7 {[%emt 0:07:25]} e3 {[%emt 0:00:03]} 53. Rf7+ {[%emt 0:00:08]} Ke4 {[%emt 0:01:47]} 54. Rf1 {[%emt 0:01:02]} e2 {[%emt 0:00:07]} 55. Rh1 {[%emt 0:00:31]} Rxa3 {[%emt 0:00:25]} 56. Kh5 {[%emt 0:00:27]} Rg3 {[%emt 0:00:39]} 57. Kh6 {[%emt 0:00:24]} Ke5 (57... Ke3 {[%emt 0:00:27]}) 0-1

[Event "23rd Alekhine FIDE 2019"]
[Site "Voronezh"]
[Date "2019.06.18"]
[Round "7.6"]
[White "Stepochkin, Fedor"]
[Black "Manukovsky, Vladimir"]
[Result "1-0"]
[ECO "B90"]
[WhiteElo "1929"]
[BlackElo "2107"]
[Annotator "NA"]
[PlyCount "48"]
[EventDate "2019.06.12"]
[EventType "swiss"]
[EventCountry "RUS"]
[SourceTitle "playchess.com"]
[Source "ChessBase"]
[SourceQuality "1"]
[TimeControl "40/5400+30:1800+30"]

1. e4 c5 {[%emt 0:14:31]} 2. Nf3 {[%emt 0:00:00]} d6 {[%emt 0:01:06]} 3. d4 {[%emt 0:00:00]} cxd4 {[%emt 0:00:08]} 4. Nxd4 {[%emt 0:00:00]} Nf6 {[%emt 0:00:02]} 5. Nc3 {[%emt 0:00:00]} a6 6. a4 {[%emt 0:08:30]} b6 {[%emt 0:01:19]} 7. Bd3 {[%emt 0:01:46]} Bb7 {[%emt 0:00:04]} 8. O-O {[%emt 0:02:07]} e6 9. Be3 {[%emt 0:17:37]} Be7 {[%emt 0:00:45]} 10. f4 {[%emt 0:00:22]} Nbd7 {[%emt 0:00:00]} 11. Nb3 {[%emt 0:00:52]} O-O {[%emt 0:00:28]} 12. Qe2 Qc7 {[%emt 0:00:09]} 13. h3 {[%emt 0:05:27]} Rfd8 {[%emt 0:03:02]} 14. f5 {[%emt 0:07:00]} Ne5 {[%emt 0:00:30]} 15. Qf2 {[%emt 0:00:30]} Nfd7 {[%emt 0:00:16]} 16. Nd4 {[%emt 0:22:34]} Nc5 {[%emt 0:00:30]} 17. Qg3 {[%emt 0:00:30]} Kh8 {[%emt 0:00:30]} 18. fxe6 {[%emt 0:00:30]} Bf6 {[%emt 0:26:55]} 19. Nd5 {[%emt 0:11:04]} Bxd5 {[%emt 0:00:30]} 20. exd5 {[%emt 0:00:30]} fxe6 {[%emt 0:00:30]} 21. dxe6 {[%emt 0:00:30]} Ncxd3 {[%emt 0:00:30]} 22. cxd3 {[%emt 0:00:30]} Nxd3 {[%emt 0:00:30]} 23. Rad1 Nxb2 {[%emt 0:09:19]} 24. Rc1 {[%emt 0:17:53]} Qb7 {[%emt 0:00:48]} 1-0

[Event "23rd Alekhine FIDE 2019"]
[Site "Voronezh"]
[Date "2019.06.18"]
[Round "7.8"]
[White "Abramov, Ilya"]
[Black "Gutkovich, Polina"]
[Result "1-0"]
[ECO "A65"]
[WhiteElo "2098"]
[BlackElo "2029"]
[Annotator "NA"]
[PlyCount "115"]
[EventDate "2019.06.12"]
[EventType "swiss"]
[EventCountry "RUS"]
[SourceTitle "playchess.com"]
[Source "ChessBase"]
[SourceQuality "1"]
[TimeControl "40/5400+30:1800+30"]

1. d4 {[%emt 0:00:00]} Nf6 {[%emt 0:00:00]} 2. c4 {[%emt 0:00:00]} c5 {[%emt 0:00:00]} 3. d5 {[%emt 0:00:00]} e6 {[%emt 0:00:00]} 4. Nc3 {[%emt 0:00:00]} exd5 {[%emt 0:00:00]} 5. cxd5 {[%emt 0:00:00]} d6 {[%emt 0:00:00]} 6. e4 {[%emt 0:00:00]} g6 {[%emt 0:00:00]} 7. Bd3 {[%emt 0:00:10]} Bg7 {[%emt 0:00:05]} 8. h3 {[%emt 0:00:04]} O-O {[%emt 0:00:12]} 9. Nf3 {[%emt 0:00:02]} Na6 {[%emt 0:00:30]} 10. O-O {[%emt 0:01:02]} Nc7 {[%emt 0:02:07]} 11. Re1 a6 {[%emt 0:04:56]} 12. a4 {[%emt 0:00:50]} Rb8 {[%emt 0:00:06]} 13. a5 {[%emt 0:02:21]} Bd7 {[%emt 0:11:30]} 14. Bf4 {[%emt 0:01:34]} Bb5 {[%emt 0:01:25]} 15. Bc2 {[%emt 0:05:07]} b6 {[%emt 0:07:43]} 16. Nd2 {[%emt 0:21:26]} bxa5 {[%emt 0:11:37]} 17. Bh2 {[%emt 0:03:16]} Re8 {[%emt 0:03:03]} 18. f4 {[%emt 0:03:56]} Nd7 {[%emt 0:01:13]} 19. Kh1 {[%emt 0:16:07]} Nb6 {[%emt 0:05:53]} 20. Rxa5 {[%emt 0:01:32]} Nc4 {[%emt 0:00:27]} 21. Nxc4 {[%emt 0:00:15]} Bxc4 {[%emt 0:00:04]} 22. Ra4 {[%emt 0:00:16]} Bb5 {[%emt 0:14:46]} 23. Ra1 {[%emt 0:01:24]} Bd7 {[%emt 0:02:29]} 24. e5 {[%emt 0:07:21]} Rxb2 {[%emt 0:01:21]} 25. Ne4 {[%emt 0:00:23]} dxe5 {[%emt 0:09:17]} 26. Nd6 {[%emt 0:00:27]} Rf8 {[%emt 0:00:49]} 27. fxe5 {[%emt 0:00:18]} Nxd5 {[%emt 0:01:14]} 28. Nxf7 {[%emt 0:06:21]} Qe7 {[%emt 0:06:06]} 29. Nd6 {[%emt 0:01:39]} Nf4 {[%emt 0:01:58]} 30. Nc4 {[%emt 0:11:58]} Rb4 {[%emt 0:09:55]} 31. Re4 {[%emt 0:00:53]} Nxh3 {[%emt 0:01:24]} 32. gxh3 {[%emt 0:01:10]} Bc6 {[%emt 0:00:10]} 33. Qg4 {[%emt 0:01:19]} Kh8 {[%emt 0:02:20]} 34. Kg1 {[%emt 0:02:12]} Bxe4 {[%emt 0:02:01]} 35. Qxe4 {[%emt 0:00:02]} Qe6 {[%emt 0:00:14]} 36. Bd3 {[%emt 0:01:16]} Qxh3 {[%emt 0:00:53]} 37. Rf1 {[%emt 0:04:08]} Rd8 {[%emt 0:01:13]} 38. e6 {[%emt 0:03:26]} Re8 {[%emt 0:00:35]} 39. Qc6 {[%emt 0:01:59]} Qxe6 {[%emt 0:00:56]} 40. Nd6 {[%emt 0:00:03]} Qe3+ {[%emt 0:00:52]} 41. Kh1 {[%emt 0:30:05]} Rf8 {[%emt 0:30:05]} 42. Nf7+ {[%emt 0:00:56]} Rxf7 {[%emt 0:00:47]} 43. Qc8+ {[%emt 0:00:10]} Bf8 {[%emt 0:00:04]} 44. Rxf7 {[%emt 0:00:41]} Qe1+ {[%emt 0:01:07]} 45. Rf1 {[%emt 0:00:14]} Qe7 {[%emt 0:00:06]} 46. Qxf8+ {[%emt 0:04:31]} Qxf8 {[%emt 0:00:04]} 47. Rxf8+ {[%emt 0:00:02]} Kg7 {[%emt 0:00:05]} 48. Rc8 {[%emt 0:00:10]} Rb6 {[%emt 0:01:44]} 49. Rxc5 {[%emt 0:00:09]} h5 {[%emt 0:00:24]} 50. Be5+ {[%emt 0:00:07]} Kh6 {[%emt 0:00:20]} 51. Kg2 {[%emt 0:00:22]} Re6 {[%emt 0:00:42]} 52. Kf3 {[%emt 0:00:19]} Rb6 {[%emt 0:00:34]} 53. Rc7 {[%emt 0:00:09]} Kg5 {[%emt 0:00:29]} 54. Rc5 {[%emt 0:00:46]} Kh6 {[%emt 0:00:05]} 55. Kf4 {[%emt 0:00:17]} Rb4+ {[%emt 0:00:51]} 56. Be4 {[%emt 0:00:15]} Rb6 {[%emt 0:00:28]} 57. Rc8 {[%emt 0:00:21]} g5+ {[%emt 0:00:34]} 58. Kf5 1-0

[Event "23rd Alekhine FIDE 2019"]
[Site "Voronezh"]
[Date "2019.06.18"]
[Round "7.9"]
[White "Peschansky, Mikhail"]
[Black "Bujakevich, Aleksandr"]
[Result "1-0"]
[ECO "A28"]
[WhiteElo "2075"]
[BlackElo "2025"]
[Annotator "NA"]
[PlyCount "51"]
[EventDate "2019.06.12"]
[EventType "swiss"]
[EventCountry "RUS"]
[SourceTitle "playchess.com"]
[Source "ChessBase"]
[SourceQuality "1"]
[TimeControl "40/5400+30:1800+30"]

1. c4 {[%emt 0:00:00]} e5 {[%emt 0:00:00]} 2. Nc3 {[%emt 0:00:30]} Nf6 {[%emt 0:00:30]} 3. Nf3 {[%emt 0:00:30]} Nc6 {[%emt 0:00:30]} 4. e3 Be7 {[%emt 0:10:45]} 5. d4 {[%emt 0:05:16]} exd4 {[%emt 0:00:26]} 6. Nxd4 {[%emt 0:00:32]} O-O {[%emt 0:06:23]} 7. Be2 {[%emt 0:19:34]} Nxd4 {[%emt 0:03:36]} 8. Qxd4 {[%emt 0:00:55]} d6 {[%emt 0:07:38]} 9. b3 {[%emt 0:03:31]} Re8 {[%emt 0:06:19]} 10. Bb2 {[%emt 0:00:37]} Bf8 {[%emt 0:04:52]} 11. h4 {[%emt 0:08:39]} Bd7 {[%emt 0:08:09]} 12. Bf3 {[%emt 0:07:05]} Bc6 {[%emt 0:00:46]} 13. h5 {[%emt 0:09:48]} h6 {[%emt 0:04:48]} 14. Nd5 {[%emt 0:01:00]} Nd7 {[%emt 0:02:36]} 15. O-O-O {[%emt 0:01:08]} Ne5 {[%emt 0:11:12]} 16. Be2 {[%emt 0:00:50]} Bxd5 {[%emt 0:02:09]} 17. cxd5 {[%emt 0:03:33]} c5 {[%emt 0:06:13]} 18. dxc6 {[%emt 0:01:16]} bxc6 {[%emt 0:03:51]} 19. Rh3 {[%emt 0:00:45]} Qb6 {[%emt 0:02:18]} 20. Qc3 {[%emt 0:03:54]} d5 {[%emt 0:03:23]} 21. Rg3 {[%emt 0:00:15]} f6 {[%emt 0:00:30]} 22. f4 {[%emt 0:02:12]} Bb4 {[%emt 0:04:37]} 23. Qc2 {[%emt 0:00:29]} Nd7 {[%emt 0:01:27]} 24. Qg6 {[%emt 0:00:54]} Re7 {[%emt 0:04:58]} 25. Bd3 {[%emt 0:01:30]} Kf8 {[%emt 0:03:15]} 26. Qh7 {[%emt 0:00:20]} 1-0

[Event "23rd Alekhine FIDE 2019"]
[Site "Voronezh"]
[Date "2019.06.18"]
[Round "7.11"]
[White "Khajrutdinov, Ildar"]
[Black "Polukhin, Alexander"]
[Result "1/2-1/2"]
[ECO "A52"]
[WhiteElo "2063"]
[BlackElo "1968"]
[Annotator "NA"]
[PlyCount "79"]
[EventDate "2019.06.12"]
[EventType "swiss"]
[EventCountry "RUS"]
[SourceTitle "playchess.com"]
[Source "ChessBase"]
[SourceQuality "1"]
[TimeControl "40/5400+30:1800+30"]

1. d4 {[%emt 0:00:00]} Nf6 {[%emt 0:00:00]} 2. c4 {[%emt 0:00:21]} e5 {[%emt 0:00:00]} 3. dxe5 {[%emt 0:00:15]} Ng4 {[%emt 0:00:00]} 4. Nf3 {[%emt 0:01:51]} Bc5 {[%emt 0:00:00]} 5. e3 {[%emt 0:00:06]} Nc6 {[%emt 0:00:01]} 6. Be2 {[%emt 0:01:02]} Ngxe5 {[%emt 0:00:46]} 7. Nc3 {[%emt 0:03:49]} O-O {[%emt 0:01:14]} 8. O-O {[%emt 0:12:26]} d6 {[%emt 0:04:59]} 9. Na4 {[%emt 0:07:01]} Bb6 {[%emt 0:02:35]} 10. Nxb6 {[%emt 0:03:56]} axb6 {[%emt 0:01:36]} 11. Nxe5 {[%emt 0:10:40]} Nxe5 {[%emt 0:02:06]} 12. f4 {[%emt 0:05:03]} Nd7 {[%emt 0:06:07]} 13. Bf3 {[%emt 0:08:58]} f5 {[%emt 0:05:02]} 14. Bd2 {[%emt 0:17:13]} Qe7 {[%emt 0:04:39]} 15. Re1 {[%emt 0:00:26]} Nc5 {[%emt 0:03:05]} 16. Bc3 {[%emt 0:01:16]} Ne4 {[%emt 0:03:51]} 17. Qd4 {[%emt 0:01:45]} Rf7 {[%emt 0:12:40]} 18. Bxe4 {[%emt 0:02:56]} Qxe4 {[%emt 0:01:02]} 19. Qxe4 {[%emt 0:00:11]} fxe4 {[%emt 0:00:07]} 20. b3 {[%emt 0:01:56]} Be6 {[%emt 0:08:04]} 21. Red1 {[%emt 0:00:43]} Rd7 {[%emt 0:02:02]} 22. Rd2 {[%emt 0:02:55]} d5 {[%emt 0:02:27]} 23. cxd5 {[%emt 0:01:06]} Rxd5 {[%emt 0:06:36]} 24. Rxd5 {[%emt 0:01:59]} Bxd5 {[%emt 0:00:01]} 25. Rd1 {[%emt 0:00:18]} c6 {[%emt 0:00:08]} 26. Rd2 {[%emt 0:00:10]} g6 {[%emt 0:01:55]} 27. g4 {[%emt 0:01:47]} Rf8 {[%emt 0:00:57]} 28. Kf2 {[%emt 0:01:12]} b5 {[%emt 0:03:46]} 29. Kg3 {[%emt 0:00:56]} Rf7 {[%emt 0:03:25]} 30. Bb4 {[%emt 0:01:37]} Kg7 {[%emt 0:01:22]} 31. g5 {[%emt 0:01:31]} Rd7 {[%emt 0:03:04]} 32. Bc5 {[%emt 0:03:54]} Be6 {[%emt 0:00:43]} 33. Bd4+ {[%emt 0:02:03]} Kf7 {[%emt 0:00:45]} 34. Rc2 {[%emt 0:00:18]} Rd8 {[%emt 0:02:54]} 35. h4 {[%emt 0:00:18]} Rd5 {[%emt 0:01:34]} 36. Rc5 {[%emt 0:01:43]} Rxc5 {[%emt 0:00:17]} 37. Bxc5 {[%emt 0:00:01]} Bf5 {[%emt 0:00:24]} 38. Kf2 {[%emt 0:00:52]} Ke6 {[%emt 0:00:17]} 39. Ke1 {[%emt 0:00:43]} Kd5 {[%emt 0:00:23]} 40. Bf8 1/2-1/2